[Event "Titled Tuesday Blitz April 25 Early 2023"]
[White "Camacho Collados, Jose"]
[Black "Gonzalez, Francisco Silva"]
[WhiteFideId "2265427"]
[BlackFideId "1512285"]
[WhiteElo "2198"]
[BlackElo "2074"]
[Result "1-0"]
[Round "02"]
[TimeControl "180+2"]
[Date "2023.04.25"]
[WhiteClock "0:00:02"]
[BlackClock "0:00:03"]

1. Nf3 {[%clk 0:03:00]}  d5 {[%clk 0:02:21]} 2. c4 {[%clk 0:02:57]}  e6 {[%clk 0:02:20]} 3. d4 {[%clk 0:02:56]}  a6 {[%clk 0:02:20]} 4. Nc3 {[%clk 0:02:55]}  Nf6 {[%clk 0:02:19]} 5. cxd5 {[%clk 0:02:55]}  exd5 {[%clk 0:02:19]} 6. Bg5 {[%clk 0:02:56]}  Be6 {[%clk 0:02:18]} 7. e3 {[%clk 0:02:56]}  Bd6 {[%clk 0:02:18]} 8. Bd3 {[%clk 0:02:56]}  Nbd7 {[%clk 0:02:17]} 9. O-O {[%clk 0:02:57]}  c6 {[%clk 0:02:17]} 10. Rb1 {[%clk 0:02:57]}  O-O {[%clk 0:02:16]} 11. b4 {[%clk 0:02:58]}  Qc7 {[%clk 0:02:16]} 12. a4 {[%clk 0:02:56]}  Rfc8 {[%clk 0:02:11]} 13. Qc2 {[%clk 0:02:50]}  a5 {[%clk 0:02:09]} 14. b5 {[%clk 0:02:46]}  cxb5 {[%clk 0:02:06]} 15. Nxb5 {[%clk 0:02:40]}  Bxh2+ {[%clk 0:02:01]} 16. Nxh2 {[%clk 0:02:41]}  Qxc2 {[%clk 0:02:01]} 17. Bxc2 {[%clk 0:02:42]}  Rxc2 {[%clk 0:02:01]} 18. Nd6 {[%clk 0:02:30]}  Ra2 {[%clk 0:01:59]} 19. Ra1 {[%clk 0:02:25]}  Rxa1 {[%clk 0:01:59]} 20. Rxa1 {[%clk 0:02:26]}  b6 {[%clk 0:01:59]} 21. Rb1 {[%clk 0:02:19]}  Ne4 {[%clk 0:01:58]} 22. Bf4 {[%clk 0:02:03]}  Nxd6 {[%clk 0:01:57]} 23. Bxd6 {[%clk 0:02:03]}  Rc8 {[%clk 0:01:58]} 24. Nf3 {[%clk 0:01:55]}  Bf5 {[%clk 0:01:58]} 25. Rb5 {[%clk 0:01:52]}  Bd3 {[%clk 0:01:57]} 26. Rxd5 {[%clk 0:01:49]}  Be4 {[%clk 0:01:50]} 27. Rb5 {[%clk 0:01:47]}  Bc6 {[%clk 0:01:48]} 28. Rb1 {[%clk 0:01:33]}  Bxa4 {[%clk 0:01:48]} 29. e4 {[%clk 0:01:32]}  b5 {[%clk 0:01:44]} 30. d5 {[%clk 0:01:27]}  f6 {[%clk 0:01:42]} 31. Nd4 {[%clk 0:01:26]}  b4 {[%clk 0:01:27]} 32. f3 {[%clk 0:01:20]}  Bc2 {[%clk 0:01:21]} 33. Rc1 {[%clk 0:01:17]}  Rc4 {[%clk 0:01:20]} 34. Nc6 {[%clk 0:00:55]}  b3 {[%clk 0:01:18]} 35. Ba3 {[%clk 0:00:55]}  a4 {[%clk 0:01:15]} 36. Kf2 {[%clk 0:00:53]}  Ne5 {[%clk 0:01:12]} 37. Nxe5 {[%clk 0:00:51]}  fxe5 {[%clk 0:01:12]} 38. Bb2 {[%clk 0:00:38]}  Kf7 {[%clk 0:01:08]} 39. Ke3 {[%clk 0:00:38]}  Rb4 {[%clk 0:01:03]} 40. Kd2 {[%clk 0:00:32]}  Kf6 {[%clk 0:01:00]} 41. f4 {[%clk 0:00:18]}  Rxe4 {[%clk 0:00:48]} 42. fxe5+ {[%clk 0:00:18]}  Rxe5 {[%clk 0:00:43]} 43. Rf1+ {[%clk 0:00:18]}  Bf5 {[%clk 0:00:41]} 44. g4 {[%clk 0:00:19]}  Kg6 {[%clk 0:00:42]} 45. Bxe5 {[%clk 0:00:14]}  Bxg4 {[%clk 0:00:42]} 46. Kc3 {[%clk 0:00:12]}  h5 {[%clk 0:00:35]} 47. d6 {[%clk 0:00:13]}  Bd7 {[%clk 0:00:32]} 48. Kb4 {[%clk 0:00:11]}  h4 {[%clk 0:00:30]} 49. Rg1+ {[%clk 0:00:11]}  Kf5 {[%clk 0:00:30]} 50. Bxg7 {[%clk 0:00:10]}  h3 {[%clk 0:00:31]} 51. Rh1 {[%clk 0:00:09]}  Ke4 {[%clk 0:00:30]} 52. Ka3 {[%clk 0:00:09]}  Kd5 {[%clk 0:00:29]} 53. Bf8 {[%clk 0:00:09]}  Kc4 {[%clk 0:00:29]} 54. Be7 {[%clk 0:00:08]}  Kc3 {[%clk 0:00:29]} 55. Bf6+ {[%clk 0:00:09]}  Kc2 {[%clk 0:00:29]} 56. Rh2+ {[%clk 0:00:09]}  Kc1 {[%clk 0:00:29]} 57. Kb4 {[%clk 0:00:08]}  Kb1 {[%clk 0:00:27]} 58. Kc3 {[%clk 0:00:05]}  Be6 {[%clk 0:00:20]} 59. Be7 {[%clk 0:00:04]}  Bd7 {[%clk 0:00:19]} 60. Bd8 {[%clk 0:00:03]}  Be6 {[%clk 0:00:19]} 61. Ba5 {[%clk 0:00:04]}  Bd7 {[%clk 0:00:18]} 62. Bb4 {[%clk 0:00:04]}  Be6 {[%clk 0:00:17]} 63. Ba3 {[%clk 0:00:05]}  Bd7 {[%clk 0:00:17]} 64. Rb2+ {[%clk 0:00:05]}  Ka1 {[%clk 0:00:16]} 65. Re2 {[%clk 0:00:06]}  Bc6 {[%clk 0:00:14]} 66. Bb2+ {[%clk 0:00:06]}  Ka2 {[%clk 0:00:14]} 67. Bc1+ {[%clk 0:00:06]}  Kb1 {[%clk 0:00:14]} 68. Ba3 {[%clk 0:00:06]}  Bg2 {[%clk 0:00:12]} 69. d7 {[%clk 0:00:06]}  h2 {[%clk 0:00:10]} 70. d8=Q {[%clk 0:00:06]}  h1=Q {[%clk 0:00:09]} 71. Qd3+ {[%clk 0:00:06]}  Ka1 {[%clk 0:00:06]} 72. Bb2+ {[%clk 0:00:07]}  Ka2 {[%clk 0:00:05]} 73. Bc1+ {[%clk 0:00:07]}  Ka1 {[%clk 0:00:05]} 74. Bb2+ {[%clk 0:00:05]}  Ka2 {[%clk 0:00:04]} 75. Bc1+ {[%clk 0:00:04]}  Ka1 {[%clk 0:00:04]} 76. Bd2 {[%clk 0:00:03]}  Qh8+ {[%clk 0:00:03]} 77. Kb4 {[%clk 0:00:02]} 1-0


[Site "https://www.chess.com"]

[Event "Titled Tuesday Blitz April 25 Early 2023"]
[White "Degenbaev, Aziz"]
[Black "Allahverdiyeva, Ayan"]
[WhiteFideId "13802640"]
[BlackFideId "13412590"]
[WhiteElo "2152"]
[BlackElo "1980"]
[Result "0-1"]
[Round "02"]
[TimeControl "180+2"]
[Date "2023.04.25"]
[WhiteClock "0:00:04"]
[BlackClock "0:00:04"]

1. e4 {[%clk 0:03:00]}  c5 {[%clk 0:02:58]} 2. Nf3 {[%clk 0:02:58]}  d6 {[%clk 0:02:58]} 3. d4 {[%clk 0:02:58]}  cxd4 {[%clk 0:02:59]} 4. Nxd4 {[%clk 0:02:59]}  Nf6 {[%clk 0:02:58]} 5. Nc3 {[%clk 0:02:59]}  a6 {[%clk 0:02:58]} 6. Be2 {[%clk 0:02:58]}  e6 {[%clk 0:02:57]} 7. Be3 {[%clk 0:02:54]}  Be7 {[%clk 0:02:54]} 8. g4 {[%clk 0:02:55]}  b5 {[%clk 0:02:50]} 9. g5 {[%clk 0:02:53]}  Nfd7 {[%clk 0:02:50]} 10. h4 {[%clk 0:02:53]}  b4 {[%clk 0:02:39]} 11. Na4 {[%clk 0:02:47]}  Bb7 {[%clk 0:02:39]} 12. Bd3 {[%clk 0:02:24]}  Nc5 {[%clk 0:02:30]} 13. Nxc5 {[%clk 0:02:16]}  dxc5 {[%clk 0:02:30]} 14. Nb3 {[%clk 0:02:17]}  Qc7 {[%clk 0:02:17]} 15. Qe2 {[%clk 0:02:07]}  c4 {[%clk 0:02:17]} 16. Bxc4 {[%clk 0:02:06]}  Bxe4 {[%clk 0:02:17]} 17. Rg1 {[%clk 0:02:04]}  Nd7 {[%clk 0:02:15]} 18. O-O-O {[%clk 0:02:04]}  Rc8 {[%clk 0:01:59]} 19. Bd3 {[%clk 0:01:58]}  Bxd3 {[%clk 0:01:54]} 20. Rxd3 {[%clk 0:01:55]}  a5 {[%clk 0:01:52]} 21. Kb1 {[%clk 0:01:43]}  a4 {[%clk 0:01:49]} 22. Nd4 {[%clk 0:01:43]}  Ne5 {[%clk 0:01:42]} 23. Nb5 {[%clk 0:01:40]}  Qc4 {[%clk 0:00:52]} 24. Rd2 {[%clk 0:01:30]}  Nf3 {[%clk 0:00:40]} 25. Qxf3 {[%clk 0:00:52]}  Qxb5 {[%clk 0:00:39]} 26. Rgd1 {[%clk 0:00:49]}  b3 {[%clk 0:00:35]} 27. axb3 {[%clk 0:00:45]}  axb3 {[%clk 0:00:35]} 28. cxb3 {[%clk 0:00:45]}  Qxb3 {[%clk 0:00:29]} 29. Rd7 {[%clk 0:00:22]}  O-O {[%clk 0:00:14]} 30. Qe4 {[%clk 0:00:19]}  Ba3 {[%clk 0:00:13]} 31. Qd4 {[%clk 0:00:11]}  Qc2+ {[%clk 0:00:12]} 32. Ka2 {[%clk 0:00:09]}  Bc5 {[%clk 0:00:12]} 33. Qxc5 {[%clk 0:00:04]}  Rxc5 {[%clk 0:00:12]} 34. Bxc5 {[%clk 0:00:04]}  Qxc5 {[%clk 0:00:10]} 35. Kb1 {[%clk 0:00:04]}  g6 {[%clk 0:00:10]} 36. f4 {[%clk 0:00:04]}  Qf5+ {[%clk 0:00:09]} 37. R1d3 {[%clk 0:00:04]}  Qxf4 {[%clk 0:00:06]} 38. R7d4 {[%clk 0:00:05]}  Qf1+ {[%clk 0:00:06]} 39. Rd1 {[%clk 0:00:06]}  Qf5+ {[%clk 0:00:05]} 40. Ka2 {[%clk 0:00:03]}  Ra8+ {[%clk 0:00:05]} 41. Kb3 {[%clk 0:00:04]}  Qb5+ {[%clk 0:00:05]} 42. Kc3 {[%clk 0:00:04]}  Rc8+ {[%clk 0:00:05]} 43. Kd2 {[%clk 0:00:05]}  Qxb2+ {[%clk 0:00:06]} 44. Ke1 {[%clk 0:00:05]}  Rc2 {[%clk 0:00:05]} 45. Re4 {[%clk 0:00:05]}  Rh2 {[%clk 0:00:04]} 46. Rf4 {[%clk 0:00:04]}  Qe2# {[%clk 0:00:04]} 0-1


[Site "https://www.chess.com"]

[Event "Titled Tuesday Blitz April 25 Early 2023"]
[White "Ardila, Oscar Humberto"]
[Black "Devaev, Alexander"]
[WhiteFideId "4404742"]
[BlackFideId "4169395"]
[WhiteElo "1918"]
[BlackElo "2204"]
[Result "1-0"]
[Round "02"]
[TimeControl "180+2"]
[Date "2023.04.25"]
[WhiteClock "0:00:22"]
[BlackClock "0:00:05"]

1. d4 {[%clk 0:03:00]}  Nf6 {[%clk 0:02:58]} 2. c4 {[%clk 0:02:59]}  e6 {[%clk 0:02:57]} 3. Nc3 {[%clk 0:02:59]}  Bb4 {[%clk 0:02:57]} 4. Bd2 {[%clk 0:02:59]}  c5 {[%clk 0:02:57]} 5. dxc5 {[%clk 0:02:57]}  Na6 {[%clk 0:02:56]} 6. Nf3 {[%clk 0:02:57]}  Nxc5 {[%clk 0:02:56]} 7. a3 {[%clk 0:02:55]}  Bxc3 {[%clk 0:02:56]} 8. Bxc3 {[%clk 0:02:56]}  Nce4 {[%clk 0:02:55]} 9. Bd4 {[%clk 0:02:53]}  b6 {[%clk 0:02:55]} 10. b4 {[%clk 0:02:52]}  Bb7 {[%clk 0:02:55]} 11. e3 {[%clk 0:02:51]}  O-O {[%clk 0:02:55]} 12. Be2 {[%clk 0:02:51]}  d5 {[%clk 0:02:54]} 13. O-O {[%clk 0:02:47]}  Rc8 {[%clk 0:02:47]} 14. Rc1 {[%clk 0:02:45]}  Qe7 {[%clk 0:02:39]} 15. Qb3 {[%clk 0:02:42]}  Rfd8 {[%clk 0:02:33]} 16. Rfd1 {[%clk 0:02:41]}  Ng4 {[%clk 0:02:26]} 17. Qb2 {[%clk 0:02:21]}  Ngxf2 {[%clk 0:02:18]} 18. Bxg7 {[%clk 0:02:19]}  Nxd1 {[%clk 0:02:19]} 19. Rxd1 {[%clk 0:02:15]}  dxc4 {[%clk 0:02:18]} 20. Rxd8+ {[%clk 0:02:02]}  Rxd8 {[%clk 0:02:14]} 21. Bxc4 {[%clk 0:01:43]}  f6 {[%clk 0:02:11]} 22. Bh6 {[%clk 0:01:41]}  Bd5 {[%clk 0:02:10]} 23. Bd3 {[%clk 0:01:34]}  Kf7 {[%clk 0:01:56]} 24. Nd4 {[%clk 0:01:23]}  e5 {[%clk 0:01:40]} 25. Nf5 {[%clk 0:01:19]}  Qe6 {[%clk 0:01:40]} 26. Ng3 {[%clk 0:01:07]}  Nxg3 {[%clk 0:01:36]} 27. hxg3 {[%clk 0:01:07]}  Bxg2 {[%clk 0:01:16]} 28. Qc2 {[%clk 0:00:56]}  Bd5 {[%clk 0:00:52]} 29. Bxh7 {[%clk 0:00:51]}  e4 {[%clk 0:00:52]} 30. Qc7+ {[%clk 0:00:44]}  Rd7 {[%clk 0:00:20]} 31. Qc8 {[%clk 0:00:41]}  Qe8 {[%clk 0:00:19]} 32. Bg6+ {[%clk 0:00:31]}  Kxg6 {[%clk 0:00:19]} 33. Qxe8+ {[%clk 0:00:31]}  Rf7 {[%clk 0:00:19]} 34. Bf4 {[%clk 0:00:30]}  Kf5 {[%clk 0:00:18]} 35. Qg8 {[%clk 0:00:27]}  Ke6 {[%clk 0:00:15]} 36. Qg6 {[%clk 0:00:25]}  b5 {[%clk 0:00:10]} 37. g4 {[%clk 0:00:25]}  Ke7 {[%clk 0:00:10]} 38. Qf5 {[%clk 0:00:24]}  Rg7 {[%clk 0:00:05]} 39. Qxd5 {[%clk 0:00:22]} 1-0


[Site "https://www.chess.com"]

[Event "Titled Tuesday Blitz April 25 Early 2023"]
[White "Bashkansky, Ethan"]
[Black "Tokman, Ariel"]
[WhiteFideId "2071533"]
[BlackFideId "117420"]
[WhiteElo "2297"]
[BlackElo "2263"]
[Result "0-1"]
[Round "02"]
[TimeControl "180+2"]
[Date "2023.04.25"]
[WhiteClock "0:00:23"]
[BlackClock "0:00:59"]

1. d4 {[%clk 0:03:00]}  b6 {[%clk 0:02:59]} 2. c4 {[%clk 0:02:59]}  Bb7 {[%clk 0:03:00]} 3. a3 {[%clk 0:02:59]}  Nf6 {[%clk 0:02:59]} 4. d5 {[%clk 0:02:59]}  e5 {[%clk 0:02:58]} 5. Nc3 {[%clk 0:03:00]}  a5 {[%clk 0:02:55]} 6. g3 {[%clk 0:02:58]}  d6 {[%clk 0:02:54]} 7. Bg2 {[%clk 0:02:58]}  Nbd7 {[%clk 0:02:55]} 8. Nh3 {[%clk 0:02:57]}  g6 {[%clk 0:02:55]} 9. O-O {[%clk 0:02:56]}  Bg7 {[%clk 0:02:56]} 10. Kh1 {[%clk 0:02:53]}  O-O {[%clk 0:02:57]} 11. f4 {[%clk 0:02:44]}  exf4 {[%clk 0:02:52]} 12. gxf4 {[%clk 0:02:45]}  Re8 {[%clk 0:02:50]} 13. e4 {[%clk 0:02:33]}  Nc5 {[%clk 0:02:50]} 14. Qe2 {[%clk 0:02:19]}  c6 {[%clk 0:02:46]} 15. e5 {[%clk 0:01:58]}  cxd5 {[%clk 0:02:44]} 16. cxd5 {[%clk 0:01:53]}  Nfd7 {[%clk 0:02:25]} 17. Ng5 {[%clk 0:01:35]}  dxe5 {[%clk 0:02:16]} 18. fxe5 {[%clk 0:01:24]}  Nxe5 {[%clk 0:02:16]} 19. Bf4 {[%clk 0:01:13]}  Ned3 {[%clk 0:02:08]} 20. Qd2 {[%clk 0:01:11]}  Nxf4 {[%clk 0:01:42]} 21. Qxf4 {[%clk 0:01:08]}  f5 {[%clk 0:01:42]} 22. Rad1 {[%clk 0:01:00]}  Qf6 {[%clk 0:01:11]} 23. h4 {[%clk 0:00:47]}  h6 {[%clk 0:01:08]} 24. Nf3 {[%clk 0:00:43]}  Ne4 {[%clk 0:01:05]} 25. Qc7 {[%clk 0:00:28]}  Re7 {[%clk 0:01:02]} 26. Nxe4 {[%clk 0:00:28]}  fxe4 {[%clk 0:01:01]} 27. Qxb6 {[%clk 0:00:22]}  exf3 {[%clk 0:00:59]} 28. Rxf3 {[%clk 0:00:23]}  Qxb6 {[%clk 0:00:59]} 0-1


[Site "https://www.chess.com"]

[Event "Titled Tuesday Blitz April 25 Early 2023"]
[White "sebastianmarinp"]
[Black "Erzhanov, Arman"]
[BlackFideId "4138821"]
[WhiteElo "2292"]
[BlackElo "2138"]
[Result "1-0"]
[Round "02"]
[TimeControl "180+2"]
[Date "2023.04.25"]
[WhiteClock "0:00:12"]
[BlackClock "0:00:52"]

1. e4 {[%clk 0:03:00]}  d5 {[%clk 0:02:56]} 2. exd5 {[%clk 0:02:59]}  Qxd5 {[%clk 0:02:56]} 3. Nc3 {[%clk 0:03:00]}  Qe5+ {[%clk 0:02:57]} 4. Qe2 {[%clk 0:02:56]}  Qxe2+ {[%clk 0:02:56]} 5. Bxe2 {[%clk 0:02:57]}  e5 {[%clk 0:02:56]} 6. Nf3 {[%clk 0:02:56]}  Nc6 {[%clk 0:02:55]} 7. Bb5 {[%clk 0:02:53]}  f6 {[%clk 0:02:46]} 8. d4 {[%clk 0:02:49]}  exd4 {[%clk 0:02:45]} 9. Nxd4 {[%clk 0:02:50]}  Bd7 {[%clk 0:02:45]} 10. Nxc6 {[%clk 0:02:48]}  bxc6 {[%clk 0:02:45]} 11. Bc4 {[%clk 0:02:46]}  Bb4 {[%clk 0:02:41]} 12. Bd2 {[%clk 0:02:39]}  O-O-O {[%clk 0:02:36]} 13. O-O-O {[%clk 0:02:37]}  Ne7 {[%clk 0:02:34]} 14. Rhe1 {[%clk 0:02:29]}  Ng6 {[%clk 0:02:33]} 15. a3 {[%clk 0:02:11]}  Bc5 {[%clk 0:02:26]} 16. Ne4 {[%clk 0:02:11]}  Bb6 {[%clk 0:02:26]} 17. Be3 {[%clk 0:01:59]}  Rhe8 {[%clk 0:02:25]} 18. Nc5 {[%clk 0:01:45]}  Bg4 {[%clk 0:02:14]} 19. f3 {[%clk 0:01:21]}  Bf5 {[%clk 0:02:09]} 20. Ba6+ {[%clk 0:01:09]}  Kb8 {[%clk 0:02:08]} 21. g4 {[%clk 0:01:04]}  Rxd1+ {[%clk 0:01:55]} 22. Rxd1 {[%clk 0:00:58]}  Bc8 {[%clk 0:01:49]} 23. Nd7+ {[%clk 0:00:39]}  Bxd7 {[%clk 0:01:47]} 24. Bxb6 {[%clk 0:00:39]}  axb6 {[%clk 0:01:36]} 25. Rxd7 {[%clk 0:00:37]}  Re7 {[%clk 0:01:28]} 26. Rxe7 {[%clk 0:00:33]}  Nxe7 {[%clk 0:01:29]} 27. Bd3 {[%clk 0:00:33]}  h6 {[%clk 0:01:28]} 28. Kd2 {[%clk 0:00:29]}  Nd5 {[%clk 0:01:27]} 29. Be4 {[%clk 0:00:26]}  Ne7 {[%clk 0:01:24]} 30. Ke3 {[%clk 0:00:24]}  Kc8 {[%clk 0:01:23]} 31. h4 {[%clk 0:00:21]}  g5 {[%clk 0:01:18]} 32. f4 {[%clk 0:00:17]}  Kd7 {[%clk 0:01:18]} 33. fxg5 {[%clk 0:00:16]}  hxg5 {[%clk 0:01:18]} 34. hxg5 {[%clk 0:00:15]}  fxg5 {[%clk 0:01:18]} 35. Kd4 {[%clk 0:00:16]}  Kd6 {[%clk 0:01:18]} 36. b4 {[%clk 0:00:15]}  Ng8 {[%clk 0:01:10]} 37. c4 {[%clk 0:00:15]}  Nf6 {[%clk 0:01:10]} 38. c5+ {[%clk 0:00:15]}  Kd7 {[%clk 0:01:08]} 39. Bf3 {[%clk 0:00:15]}  Ng8 {[%clk 0:00:59]} 40. Ke5 {[%clk 0:00:15]}  Ne7 {[%clk 0:00:58]} 41. Kf6 {[%clk 0:00:15]}  bxc5 {[%clk 0:00:56]} 42. bxc5 {[%clk 0:00:15]}  Nd5+ {[%clk 0:00:56]} 43. Bxd5 {[%clk 0:00:14]}  cxd5 {[%clk 0:00:56]} 44. Kxg5 {[%clk 0:00:14]}  Kc6 {[%clk 0:00:50]} 45. Kf5 {[%clk 0:00:11]}  Kxc5 {[%clk 0:00:50]} 46. g5 {[%clk 0:00:11]}  d4 {[%clk 0:00:51]} 47. Ke4 {[%clk 0:00:10]}  Kc4 {[%clk 0:00:51]} 48. g6 {[%clk 0:00:10]}  d3 {[%clk 0:00:52]} 49. g7 {[%clk 0:00:11]}  Kb3 {[%clk 0:00:50]} 50. g8=Q+ {[%clk 0:00:10]}  Kxa3 {[%clk 0:00:51]} 51. Kxd3 {[%clk 0:00:10]}  Kb4 {[%clk 0:00:51]} 52. Qc4+ {[%clk 0:00:10]}  Ka5 {[%clk 0:00:51]} 53. Qxc7+ {[%clk 0:00:11]}  Ka6 {[%clk 0:00:51]} 54. Qb8 {[%clk 0:00:12]}  Ka5 {[%clk 0:00:51]} 55. Kc4 {[%clk 0:00:12]}  Ka4 {[%clk 0:00:52]} 56. Qb4# {[%clk 0:00:12]} 1-0


[Site "https://www.chess.com"]

[Event "Titled Tuesday Blitz April 25 Early 2023"]
[White "Arencibia Monduy, Antonio"]
[Black "Bashirli, Saadat"]
[WhiteFideId "3507939"]
[BlackFideId "13429990"]
[WhiteElo "2500"]
[BlackElo "1408"]
[Result "1-0"]
[Round "02"]
[TimeControl "180+2"]
[Date "2023.04.25"]
[WhiteClock "0:00:17"]
[BlackClock "0:00:08"]

1. e4 {[%clk 0:03:00]}  c5 {[%clk 0:02:59]} 2. Nf3 {[%clk 0:03:00]}  g6 {[%clk 0:03:00]} 3. c3 {[%clk 0:03:00]}  Nf6 {[%clk 0:03:00]} 4. e5 {[%clk 0:02:58]}  Nd5 {[%clk 0:03:00]} 5. Bc4 {[%clk 0:02:55]}  Nb6 {[%clk 0:03:00]} 6. Bb3 {[%clk 0:02:51]}  c4 {[%clk 0:03:00]} 7. Bc2 {[%clk 0:02:50]}  d6 {[%clk 0:02:58]} 8. O-O {[%clk 0:02:46]}  dxe5 {[%clk 0:02:55]} 9. Nxe5 {[%clk 0:02:45]}  Bg7 {[%clk 0:02:55]} 10. Re1 {[%clk 0:02:32]}  O-O {[%clk 0:02:52]} 11. b3 {[%clk 0:02:26]}  cxb3 {[%clk 0:02:45]} 12. axb3 {[%clk 0:02:25]}  Be6 {[%clk 0:02:39]} 13. d4 {[%clk 0:02:17]}  Bd7 {[%clk 0:02:11]} 14. Bf4 {[%clk 0:01:53]}  Nc6 {[%clk 0:02:09]} 15. Nxd7 {[%clk 0:01:47]}  Qxd7 {[%clk 0:02:08]} 16. Be4 {[%clk 0:01:31]}  Nd5 {[%clk 0:01:51]} 17. Bg3 {[%clk 0:01:21]}  e6 {[%clk 0:01:40]} 18. Qf3 {[%clk 0:01:12]}  Nf6 {[%clk 0:01:37]} 19. Bc2 {[%clk 0:00:53]}  Rac8 {[%clk 0:01:32]} 20. Na3 {[%clk 0:00:52]}  Nd5 {[%clk 0:01:29]} 21. Nc4 {[%clk 0:00:51]}  b5 {[%clk 0:01:21]} 22. Nd6 {[%clk 0:00:49]}  Rb8 {[%clk 0:01:14]} 23. Be4 {[%clk 0:00:47]}  Nce7 {[%clk 0:01:03]} 24. Red1 {[%clk 0:00:39]}  Rb6 {[%clk 0:01:00]} 25. c4 {[%clk 0:00:36]}  bxc4 {[%clk 0:00:56]} 26. bxc4 {[%clk 0:00:36]}  Nf6 {[%clk 0:00:56]} 27. c5 {[%clk 0:00:35]}  Nxe4 {[%clk 0:00:34]} 28. cxb6 {[%clk 0:00:30]}  Nxd6 {[%clk 0:00:34]} 29. Bxd6 {[%clk 0:00:27]}  Qxd6 {[%clk 0:00:33]} 30. bxa7 {[%clk 0:00:27]}  Bxd4 {[%clk 0:00:09]} 31. a8=Q {[%clk 0:00:27]}  Rxa8 {[%clk 0:00:09]} 32. Qxa8+ {[%clk 0:00:27]}  Kg7 {[%clk 0:00:10]} 33. Qe4 {[%clk 0:00:26]}  e5 {[%clk 0:00:08]} 34. Rab1 {[%clk 0:00:24]}  Nd5 {[%clk 0:00:08]} 35. Qd3 {[%clk 0:00:19]}  Nc3 {[%clk 0:00:07]} 36. Qxc3 {[%clk 0:00:16]}  Qe6 {[%clk 0:00:02]} 37. Rxd4 {[%clk 0:00:16]}  exd4 {[%clk 0:00:02]} 38. Qxd4+ {[%clk 0:00:17]}  f6 {[%clk 0:00:02]} 39. Rd1 {[%clk 0:00:16]}  Kh6 {[%clk 0:00:03]} 40. Qe3+ {[%clk 0:00:16]}  Qxe3 {[%clk 0:00:02]} 41. fxe3 {[%clk 0:00:17]}  g5 {[%clk 0:00:03]} 42. Kf2 {[%clk 0:00:17]}  Kg6 {[%clk 0:00:04]} 43. e4 {[%clk 0:00:18]}  h6 {[%clk 0:00:05]} 44. Kf3 {[%clk 0:00:18]}  f5 {[%clk 0:00:06]} 45. exf5+ {[%clk 0:00:18]}  Kxf5 {[%clk 0:00:06]} 46. Rd5+ {[%clk 0:00:18]}  Kf6 {[%clk 0:00:06]} 47. Ra5 {[%clk 0:00:19]}  g4+ {[%clk 0:00:07]} 48. Kxg4 {[%clk 0:00:19]}  h5+ {[%clk 0:00:08]} 49. Kxh5 {[%clk 0:00:18]}  Ke6 {[%clk 0:00:08]} 50. Kg4 {[%clk 0:00:17]} 1-0


[Site "https://www.chess.com"]

[Event "Titled Tuesday Blitz April 25 Early 2023"]
[White "Albuquerque Junior,Wellington S."]
[Black "Zavortink, Matt"]
[WhiteFideId "2151480"]
[BlackFideId "2034263"]
[WhiteElo "2109"]
[BlackElo "2499"]
[Result "1-0"]
[Round "02"]
[TimeControl "180+2"]
[Date "2023.04.25"]
[WhiteClock "0:00:17"]
[BlackClock "0:00:10"]

1. c4 {[%clk 0:03:00]}  Nf6 {[%clk 0:02:59]} 2. g3 {[%clk 0:02:53]}  g6 {[%clk 0:02:59]} 3. Bg2 {[%clk 0:02:53]}  Bg7 {[%clk 0:02:59]} 4. Nc3 {[%clk 0:02:49]}  O-O {[%clk 0:02:59]} 5. e4 {[%clk 0:02:49]}  d6 {[%clk 0:02:57]} 6. d3 {[%clk 0:02:49]}  c5 {[%clk 0:02:57]} 7. Nge2 {[%clk 0:02:49]}  Nc6 {[%clk 0:02:56]} 8. O-O {[%clk 0:02:49]}  Rb8 {[%clk 0:02:56]} 9. h3 {[%clk 0:02:47]}  Ne8 {[%clk 0:02:54]} 10. Be3 {[%clk 0:02:47]}  Nc7 {[%clk 0:02:54]} 11. d4 {[%clk 0:02:47]}  b5 {[%clk 0:02:54]} 12. dxc5 {[%clk 0:02:28]}  dxc5 {[%clk 0:02:55]} 13. Qxd8 {[%clk 0:02:20]}  Rxd8 {[%clk 0:02:54]} 14. cxb5 {[%clk 0:02:16]}  Nxb5 {[%clk 0:02:50]} 15. Bxc5 {[%clk 0:02:12]}  Nxc3 {[%clk 0:02:49]} 16. bxc3 {[%clk 0:02:09]}  Ba6 {[%clk 0:02:45]} 17. Rfe1 {[%clk 0:01:59]}  Bxe2 {[%clk 0:02:25]} 18. Rxe2 {[%clk 0:02:00]}  Bxc3 {[%clk 0:02:25]} 19. Rc1 {[%clk 0:01:58]}  Bd4 {[%clk 0:02:21]} 20. Ba3 {[%clk 0:01:46]}  Rb6 {[%clk 0:01:46]} 21. Kh2 {[%clk 0:01:31]}  Ra6 {[%clk 0:01:39]} 22. Bc5 {[%clk 0:01:32]}  Bxc5 {[%clk 0:01:35]} 23. Rxc5 {[%clk 0:01:32]}  f6 {[%clk 0:01:22]} 24. Rb2 {[%clk 0:01:19]}  Nd4 {[%clk 0:01:09]} 25. Rd5 {[%clk 0:01:07]}  Rad6 {[%clk 0:00:52]} 26. Rb7 {[%clk 0:00:58]}  e6 {[%clk 0:00:32]} 27. Rxd6 {[%clk 0:00:56]}  Rxd6 {[%clk 0:00:33]} 28. Rxa7 {[%clk 0:00:56]}  e5 {[%clk 0:00:32]} 29. Bf1 {[%clk 0:00:49]}  Rc6 {[%clk 0:00:32]} 30. Ra4 {[%clk 0:00:37]}  Rc2 {[%clk 0:00:30]} 31. Bc4+ {[%clk 0:00:36]}  Kg7 {[%clk 0:00:30]} 32. Kg2 {[%clk 0:00:36]}  h5 {[%clk 0:00:27]} 33. Bd5 {[%clk 0:00:33]}  Rd2 {[%clk 0:00:23]} 34. Ra7+ {[%clk 0:00:30]}  Kh6 {[%clk 0:00:21]} 35. Rf7 {[%clk 0:00:26]}  f5 {[%clk 0:00:18]} 36. exf5 {[%clk 0:00:20]}  Nxf5 {[%clk 0:00:18]} 37. Be4 {[%clk 0:00:20]}  Nd4 {[%clk 0:00:10]} 38. Rf6 {[%clk 0:00:18]}  Rxa2 {[%clk 0:00:10]} 39. Rxg6+ {[%clk 0:00:18]}  Kh7 {[%clk 0:00:10]} 40. Ra6+ {[%clk 0:00:17]} 1-0


[Site "https://www.chess.com"]

[Event "Titled Tuesday Blitz April 25 Early 2023"]
[White "Sarkar, Justin"]
[Black "Roebers, Eline"]
[WhiteFideId "2010011"]
[BlackFideId "1058401"]
[WhiteElo "2189"]
[BlackElo "2494"]
[Result "0-1"]
[Round "02"]
[TimeControl "180+2"]
[Date "2023.04.25"]
[WhiteClock "0:01:32"]
[BlackClock "0:02:32"]

1. e4 {[%clk 0:02:56]}  c5 {[%clk 0:02:58]} 2. Nf3 {[%clk 0:02:55]}  e6 {[%clk 0:02:58]} 3. d4 {[%clk 0:02:53]}  cxd4 {[%clk 0:02:59]} 4. Nxd4 {[%clk 0:02:52]}  Nc6 {[%clk 0:02:56]} 5. Nc3 {[%clk 0:02:46]}  Nf6 {[%clk 0:02:54]} 6. Nxc6 {[%clk 0:02:36]}  bxc6 {[%clk 0:02:55]} 7. e5 {[%clk 0:02:35]}  Nd5 {[%clk 0:02:56]} 8. Ne4 {[%clk 0:02:35]}  Qc7 {[%clk 0:02:56]} 9. f4 {[%clk 0:02:31]}  Rb8 {[%clk 0:02:56]} 10. c4 {[%clk 0:02:24]}  Bb4+ {[%clk 0:02:54]} 11. Ke2 {[%clk 0:02:16]}  O-O {[%clk 0:02:53]} 12. cxd5 {[%clk 0:02:02]}  cxd5 {[%clk 0:02:54]} 13. Nd6 {[%clk 0:02:00]}  f6 {[%clk 0:02:52]} 14. Bd2 {[%clk 0:01:39]}  fxe5 {[%clk 0:02:46]} 15. fxe5 {[%clk 0:01:33]}  Ba6+ {[%clk 0:02:34]} 16. Ke1 {[%clk 0:01:32]}  Qc5 {[%clk 0:02:32]} 0-1


[Site "https://www.chess.com"]